[Event "Late-Titled-Tuesday-Blitz-May-07-2024"]
[Site "Chess.com"]
[Date "2024.05.07"]
[Round "2"]
[White "PapaieDudu"]
[Black "djano"]
[Result "0-1"]
[WhiteElo "2354"]
[BlackElo "2558"]
[TimeControl "180+1"]
[EndTime "14:17:33 PDT"]
[Termination "djano won by checkmate"]

1. Nf3 {[%clk 0:03:00.2]} 1... c5 {[%clk 0:02:59.3]} 2. e3 {[%clk 0:02:59.8]}
2... f5 {[%clk 0:02:57.5]} 3. d4 {[%clk 0:03:00.2]} 3... e6 {[%clk 0:02:57.9]}
4. c4 {[%clk 0:03:00.5]} 4... Nf6 {[%clk 0:02:56.9]} 5. Nc3 {[%clk 0:03:00.1]}
5... cxd4 {[%clk 0:02:56.7]} 6. exd4 {[%clk 0:03:00.2]} 6... Bb4 {[%clk
0:02:56.1]} 7. Bd3 {[%clk 0:02:54.4]} 7... O-O {[%clk 0:02:54.7]} 8. O-O {[%clk
0:02:54.7]} 8... b6 {[%clk 0:02:48.1]} 9. a3 {[%clk 0:02:51.9]} 9... Bd6 {[%clk
0:02:44.8]} 10. Re1 {[%clk 0:02:49.9]} 10... a6 {[%clk 0:02:40.3]} 11. b4 {[%clk
0:02:49.1]} 11... Bb7 {[%clk 0:02:37.7]} 12. Ne5 {[%clk 0:02:49.2]} 12... Nc6
{[%clk 0:02:34.2]} 13. Bc2 {[%clk 0:02:30.2]} 13... Rc8 {[%clk 0:02:17.5]} 14.
Bf4 {[%clk 0:02:29.1]} 14... Qe8 {[%clk 0:02:02.8]} 15. Bb3 {[%clk 0:02:22.3]}
15... Ng4 {[%clk 0:01:55.1]} 16. Nd3 {[%clk 0:02:00.5]} 16... Bxf4 {[%clk
0:01:34.2]} 17. Nxf4 {[%clk 0:02:00.6]} 17... g5 {[%clk 0:01:25.8]} 18. Nfd5
{[%clk 0:01:13.1]} 18... Ne7 {[%clk 0:01:06]} 19. Nxb6 {[%clk 0:01:04.3]} 19...
Rd8 {[%clk 0:01:06.3]} 20. d5 {[%clk 0:01:02.8]} 20... Qg6 {[%clk 0:01:00.2]}
21. h3 {[%clk 0:00:55.1]} 21... Nh6 {[%clk 0:00:56.8]} 22. d6 {[%clk 0:00:47.7]}
22... Nc6 {[%clk 0:00:55.3]} 23. c5 {[%clk 0:00:45.5]} 23... g4 {[%clk
0:00:54.7]} 24. hxg4 {[%clk 0:00:42.2]} 24... Nxg4 {[%clk 0:00:55]} 25. Nxd7
{[%clk 0:00:38.6]} 25... Qh5 {[%clk 0:00:25.9]} 26. Bxe6+ {[%clk 0:00:30.8]}
26... Kh8 {[%clk 0:00:26]} 27. Nxf8 {[%clk 0:00:26.4]} 27... Nce5 {[%clk
0:00:17.3]} 28. Kf1 {[%clk 0:00:17.6]} 28... Nh2+ {[%clk 0:00:14.7]} 29. Kg1
{[%clk 0:00:13.8]} 29... Nef3+ {[%clk 0:00:15]} 30. gxf3 {[%clk 0:00:12.3]}
30... Nxf3+ {[%clk 0:00:10.1]} 31. Kf1 {[%clk 0:00:10.2]} 31... Nd2+ {[%clk
0:00:09.4]} 32. Kg1 {[%clk 0:00:06.3]} 32... Qh1# {[%clk 0:00:08.9]} 0-1

[Event "Late-Titled-Tuesday-Blitz-May-07-2024"]
[Site "Chess.com"]
[Date "2024.05.07"]
[Round "2"]
[White "sudtirolese06"]
[Black "Galileo22"]
[Result "1-0"]
[WhiteElo "2436"]
[BlackElo "2674"]
[TimeControl "180+1"]
[EndTime "14:17:35 PDT"]
[Termination "sudtirolese06 won by checkmate"]

1. g3 {[%clk 0:02:58.7]} 1... d5 {[%clk 0:00:50]} 2. Bg2 {[%clk 0:02:59.6]} 2...
c5 {[%clk 0:00:50.1]} 3. d3 {[%clk 0:02:59.3]} 3... Nc6 {[%clk 0:00:50.7]} 4.
Nf3 {[%clk 0:02:59.3]} 4... e5 {[%clk 0:00:50.9]} 5. O-O {[%clk 0:02:59.8]} 5...
Be7 {[%clk 0:00:51.4]} 6. e4 {[%clk 0:03:00]} 6... d4 {[%clk 0:00:51]} 7. Na3
{[%clk 0:02:58.2]} 7... Nf6 {[%clk 0:00:45.5]} 8. Nc4 {[%clk 0:02:58.1]} 8...
Nd7 {[%clk 0:00:46.2]} 9. a4 {[%clk 0:02:56.7]} 9... b6 {[%clk 0:00:45.2]} 10.
Nfd2 {[%clk 0:02:46.3]} 10... h5 {[%clk 0:00:40.1]} 11. f4 {[%clk 0:02:45.4]}
11... h4 {[%clk 0:00:39.7]} 12. Nf3 {[%clk 0:02:43.1]} 12... hxg3 {[%clk
0:00:29.7]} 13. hxg3 {[%clk 0:02:42.8]} 13... exf4 {[%clk 0:00:30.6]} 14. gxf4
{[%clk 0:02:43.7]} 14... Nf6 {[%clk 0:00:23.3]} 15. Nfe5 {[%clk 0:02:39.1]}
15... Bb7 {[%clk 0:00:20.3]} 16. Qf3 {[%clk 0:02:34.1]} 16... Nd7 {[%clk
0:00:17.7]} 17. Bd2 {[%clk 0:02:23.5]} 17... Qc7 {[%clk 0:00:16.2]} 18. Bh3
{[%clk 0:02:14.7]} 18... Nf8 {[%clk 0:00:12.5]} 19. Nxc6 {[%clk 0:02:07.7]}
19... Bxc6 {[%clk 0:00:12]} 20. Ne5 {[%clk 0:02:08.2]} 20... Bb7 {[%clk
0:00:12.4]} 21. Kg2 {[%clk 0:01:52.7]} 21... a6 {[%clk 0:00:11.7]} 22. Rh1
{[%clk 0:01:52.4]} 22... f6 {[%clk 0:00:10.1]} 23. Nc4 {[%clk 0:01:50]} 23...
Ng6 {[%clk 0:00:07.5]} 24. Bf5 {[%clk 0:01:36.5]} 24... Nh4+ {[%clk 0:00:07.4]}
25. Rxh4 {[%clk 0:01:36.5]} 25... Rxh4 {[%clk 0:00:08.3]} 26. Qg3 {[%clk
0:01:37.4]} 26... g5 {[%clk 0:00:06.4]} 27. fxg5 {[%clk 0:01:17]} 27... Qxg3+
{[%clk 0:00:07.3]} 28. Kxg3 {[%clk 0:01:17.9]} 28... fxg5 {[%clk 0:00:08.2]} 29.
Nxb6 {[%clk 0:01:18.3]} 29... Rd8 {[%clk 0:00:08.6]} 30. Ba5 {[%clk 0:01:18]}
30... Rd6 {[%clk 0:00:08.7]} 31. b4 {[%clk 0:01:09.8]} 31... cxb4 {[%clk
0:00:07.9]} 32. Rb1 {[%clk 0:01:00.5]} 32... Rdh6 {[%clk 0:00:05.4]} 33. Nc4
{[%clk 0:01:00]} 33... Bc6 {[%clk 0:00:04.5]} 34. Bxb4 {[%clk 0:00:58.3]} 34...
Bxa4 {[%clk 0:00:04.6]} 35. Bxe7 {[%clk 0:00:57]} 35... Kxe7 {[%clk 0:00:05.5]}
36. Rb7+ {[%clk 0:00:57.9]} 36... Kd8 {[%clk 0:00:04.8]} 37. Ne5 {[%clk
0:00:53.6]} 37... Ke8 {[%clk 0:00:02.6]} 38. Rc7 {[%clk 0:00:48.7]} 38... Bb5
{[%clk 0:00:02.4]} 39. Nf3 {[%clk 0:00:44.6]} 39... Rh1 {[%clk 0:00:01.7]} 40.
Nxd4 {[%clk 0:00:39]} 40... Rc1 {[%clk 0:00:01.3]} 41. Ne6 {[%clk 0:00:36.8]}
41... Rh4 {[%clk 0:00:00.8]} 42. Bg6# {[%clk 0:00:36.1]} 1-0

[Event "Late-Titled-Tuesday-Blitz-May-07-2024"]
[Site "Chess.com"]
[Date "2024.05.07"]
[Round "2"]
[White "Shiner22"]
[Black "xakevicius91"]
[Result "1-0"]
[WhiteElo "2288"]
[BlackElo "2511"]
[TimeControl "180+1"]
[EndTime "14:17:36 PDT"]
[Termination "Shiner22 won by resignation"]

1. e4 {[%clk 0:03:00.9]} 1... c5 {[%clk 0:02:58.7]} 2. d4 {[%clk 0:03:00.7]}
2... cxd4 {[%clk 0:02:58.6]} 3. c3 {[%clk 0:03:00.8]} 3... Nf6 {[%clk
0:02:58.9]} 4. e5 {[%clk 0:03:00.7]} 4... Nd5 {[%clk 0:02:59.1]} 5. Nf3 {[%clk
0:03:01]} 5... d6 {[%clk 0:02:59.5]} 6. Bc4 {[%clk 0:02:56.6]} 6... e6 {[%clk
0:02:59.6]} 7. cxd4 {[%clk 0:02:53.8]} 7... Be7 {[%clk 0:02:59.3]} 8. O-O {[%clk
0:02:52.8]} 8... O-O {[%clk 0:02:59.5]} 9. Nc3 {[%clk 0:02:50.5]} 9... Nxc3
{[%clk 0:02:57.2]} 10. bxc3 {[%clk 0:02:50.2]} 10... Nc6 {[%clk 0:02:44.3]} 11.
Qe2 {[%clk 0:02:46.3]} 11... b6 {[%clk 0:02:41.8]} 12. a4 {[%clk 0:02:37.1]}
12... Bb7 {[%clk 0:02:41.8]} 13. Rd1 {[%clk 0:02:35.4]} 13... Qc7 {[%clk
0:02:40.4]} 14. Bd3 {[%clk 0:02:19.5]} 14... dxe5 {[%clk 0:02:37.5]} 15. dxe5
{[%clk 0:02:17.8]} 15... g6 {[%clk 0:02:33.2]} 16. h4 {[%clk 0:02:15.3]} 16...
Rad8 {[%clk 0:02:30.1]} 17. h5 {[%clk 0:02:11.1]} 17... Rd7 {[%clk 0:02:24.9]}
18. Bg5 {[%clk 0:01:42]} 18... Bxg5 {[%clk 0:02:22.5]} 19. Nxg5 {[%clk
0:01:41.9]} 19... Qxe5 {[%clk 0:02:20.6]} 20. Qg4 {[%clk 0:01:27.6]} 20... Qxc3
{[%clk 0:02:10.9]} 21. hxg6 {[%clk 0:01:20.2]} 21... hxg6 {[%clk 0:02:10.5]} 22.
Bxg6 {[%clk 0:01:07.9]} 22... Rxd1+ {[%clk 0:01:54.9]} 23. Rxd1 {[%clk 0:01:07]}
23... Qg7 {[%clk 0:01:26.7]} 24. Bh7+ {[%clk 0:01:00.4]} 24... Kh8 {[%clk
0:01:23.3]} 25. Qh5 {[%clk 0:00:58]} 25... Ne5 {[%clk 0:00:54.6]} 26. Be4+
{[%clk 0:00:32.5]} 26... Kg8 {[%clk 0:00:53.7]} 27. Bxb7 {[%clk 0:00:32.2]}
27... Ng6 {[%clk 0:00:33.7]} 28. Be4 {[%clk 0:00:19.2]} 28... Nf4 {[%clk
0:00:33.3]} 29. Bh7+ {[%clk 0:00:17.7]} 29... Kh8 {[%clk 0:00:33.7]} 30. Qh4
{[%clk 0:00:15.1]} 30... f6 {[%clk 0:00:22.8]} 31. Bf5+ {[%clk 0:00:11.3]} 31...
Kg8 {[%clk 0:00:22.5]} 32. Bxe6+ {[%clk 0:00:11.4]} 32... Nxe6 {[%clk
0:00:15.9]} 33. Nxe6 {[%clk 0:00:11.2]} 33... Qe7 {[%clk 0:00:08.6]} 34. Qg4+
{[%clk 0:00:10.7]} 34... Kf7 {[%clk 0:00:08.6]} 35. Nxf8 {[%clk 0:00:09.9]}
35... Qxf8 {[%clk 0:00:08.4]} 36. Rd7+ {[%clk 0:00:10]} 36... Ke8 {[%clk
0:00:08.8]} 37. Qe6+ {[%clk 0:00:10]} 1-0

[Event "Late-Titled-Tuesday-Blitz-May-07-2024"]
[Site "Chess.com"]
[Date "2024.05.07"]
[Round "2"]
[White "DrVelja"]
[Black "RuperezA"]
[Result "1-0"]
[WhiteElo "2989"]
[BlackElo "2635"]
[TimeControl "180+1"]
[EndTime "14:17:41 PDT"]
[Termination "DrVelja won by resignation"]

1. e4 {[%clk 0:03:00.9]} 1... e6 {[%clk 0:02:45.5]} 2. d4 {[%clk 0:03:00.8]}
2... d5 {[%clk 0:02:46.4]} 3. Nc3 {[%clk 0:03:00.2]} 3... Bb4 {[%clk 0:02:46.1]}
4. e5 {[%clk 0:03:00.7]} 4... c5 {[%clk 0:02:46.1]} 5. a3 {[%clk 0:03:01.4]}
5... Bxc3+ {[%clk 0:02:46.5]} 6. bxc3 {[%clk 0:03:02.3]} 6... Qa5 {[%clk
0:02:47]} 7. Bd2 {[%clk 0:03:02.2]} 7... Qa4 {[%clk 0:02:47.6]} 8. Qg4 {[%clk
0:03:02.2]} 8... Kf8 {[%clk 0:02:46.7]} 9. Qd1 {[%clk 0:03:01.8]} 9... Nc6
{[%clk 0:02:45.4]} 10. Nf3 {[%clk 0:02:56.3]} 10... b6 {[%clk 0:02:42.8]} 11. h4
{[%clk 0:02:28.6]} 11... Ba6 {[%clk 0:02:35.2]} 12. Bxa6 {[%clk 0:02:28.1]}
12... Qxa6 {[%clk 0:02:36.1]} 13. dxc5 {[%clk 0:02:28.9]} 13... bxc5 {[%clk
0:02:36]} 14. h5 {[%clk 0:02:28.3]} 14... h6 {[%clk 0:02:35.8]} 15. Rh4 {[%clk
0:02:23.2]} 15... Nge7 {[%clk 0:02:31.6]} 16. Qe2 {[%clk 0:02:22.4]} 16... Qxe2+
{[%clk 0:02:25.3]} 17. Kxe2 {[%clk 0:02:23.3]} 17... Ke8 {[%clk 0:02:17.7]} 18.
Rb1 {[%clk 0:02:21.6]} 18... Kd7 {[%clk 0:02:14.2]} 19. Rb7+ {[%clk 0:02:18.1]}
19... Kc8 {[%clk 0:02:12.8]} 20. Rb5 {[%clk 0:02:18.5]} 20... c4 {[%clk
0:02:09.4]} 21. Rg4 {[%clk 0:02:04.7]} 21... Rg8 {[%clk 0:01:56.7]} 22. Rf4
{[%clk 0:01:53.1]} 22... Rf8 {[%clk 0:01:55]} 23. Be3 {[%clk 0:01:47.1]} 23...
a6 {[%clk 0:01:50]} 24. Rb1 {[%clk 0:01:45.2]} 24... f6 {[%clk 0:00:55.2]} 25.
Bc5 {[%clk 0:01:32.2]} 25... Rb8 {[%clk 0:00:38.3]} 26. Rxb8+ {[%clk 0:01:28.2]}
26... Kxb8 {[%clk 0:00:39.2]} 27. Nd4 {[%clk 0:01:17.7]} 27... Nxd4+ {[%clk
0:00:36.7]} 28. cxd4 {[%clk 0:01:17.6]} 28... Rf7 {[%clk 0:00:34.4]} 29. Bxe7
{[%clk 0:01:18.1]} 29... Rxe7 {[%clk 0:00:35.1]} 30. exf6 {[%clk 0:01:19]} 30...
gxf6 {[%clk 0:00:35.8]} 31. Rxf6 {[%clk 0:01:19.7]} 31... e5 {[%clk 0:00:36.1]}
32. Ke3 {[%clk 0:01:00.4]} 32... exd4+ {[%clk 0:00:26.2]} 33. Kxd4 {[%clk
0:01:01.3]} 33... Re2 {[%clk 0:00:24.6]} 34. c3 {[%clk 0:01:01.5]} 34... Rc2
{[%clk 0:00:25.2]} 35. g4 {[%clk 0:00:57.4]} 35... Rd2+ {[%clk 0:00:21.6]} 36.
Kc5 {[%clk 0:00:57.7]} 36... Rd3 {[%clk 0:00:17.1]} 37. Rxh6 {[%clk 0:00:54.5]}
37... Rxc3 {[%clk 0:00:17.7]} 38. Kxd5 {[%clk 0:00:55]} 38... Rxa3 {[%clk
0:00:18.4]} 39. Rc6 {[%clk 0:00:49.9]} 39... Ra5+ {[%clk 0:00:10]} 40. Kxc4
{[%clk 0:00:48.5]} 40... Ra4+ {[%clk 0:00:09.9]} 41. Kd5 {[%clk 0:00:46]} 41...
Rxg4 {[%clk 0:00:10.8]} 42. Rxa6 {[%clk 0:00:41.1]} 42... Rg5+ {[%clk
0:00:10.6]} 43. Ke4 {[%clk 0:00:39.6]} 43... Rxh5 {[%clk 0:00:11.5]} 44. Rc6
{[%clk 0:00:37.9]} 44... Kb7 {[%clk 0:00:09.6]} 45. Rc1 {[%clk 0:00:37.8]} 45...
Rh6 {[%clk 0:00:07.4]} 46. f4 {[%clk 0:00:38]} 46... Rc6 {[%clk 0:00:07.8]} 47.
Rxc6 {[%clk 0:00:37.1]} 47... Kxc6 {[%clk 0:00:08.7]} 48. Ke5 {[%clk 0:00:37.6]}
48... Kd7 {[%clk 0:00:09.6]} 49. Kf6 {[%clk 0:00:38.1]} 49... Ke8 {[%clk
0:00:10.3]} 50. Kg7 {[%clk 0:00:38.4]} 50... Ke7 {[%clk 0:00:11.2]} 51. f5
{[%clk 0:00:39.1]} 1-0

[Event "Late-Titled-Tuesday-Blitz-May-07-2024"]
[Site "Chess.com"]
[Date "2024.05.07"]
[Round "2"]
[White "Felix-Rose"]
[Black "prime-morty"]
[Result "0-1"]
[WhiteElo "2220"]
[BlackElo "2713"]
[TimeControl "180+1"]
[EndTime "14:17:41 PDT"]
[Termination "prime-morty won on time"]

1. e4 {[%clk 0:01:59.4]} 1... d6 {[%clk 0:02:58.4]} 2. d4 {[%clk 0:01:59]} 2...
Nf6 {[%clk 0:02:59.1]} 3. Nc3 {[%clk 0:01:59.2]} 3... e5 {[%clk 0:02:59.8]} 4.
Nge2 {[%clk 0:01:56]} 4... c6 {[%clk 0:02:58.7]} 5. h3 {[%clk 0:01:52.7]} 5...
b5 {[%clk 0:02:58.4]} 6. a3 {[%clk 0:01:49.7]} 6... a5 {[%clk 0:02:57.5]} 7. g4
{[%clk 0:01:49.7]} 7... Ba6 {[%clk 0:02:57.5]} 8. Bg2 {[%clk 0:01:47.3]} 8... b4
{[%clk 0:02:57.5]} 9. Nb1 {[%clk 0:01:39]} 9... c5 {[%clk 0:02:50.3]} 10. dxe5
{[%clk 0:01:34.6]} 10... dxe5 {[%clk 0:02:50.3]} 11. Qxd8+ {[%clk 0:01:34.1]}
11... Kxd8 {[%clk 0:02:51.2]} 12. Ng3 {[%clk 0:01:26.1]} 12... Nc6 {[%clk
0:02:42.2]} 13. c3 {[%clk 0:01:19.2]} 13... g6 {[%clk 0:02:10.9]} 14. Be3 {[%clk
0:01:16.7]} 14... h5 {[%clk 0:02:05.5]} 15. g5 {[%clk 0:01:10]} 15... Nd7 {[%clk
0:02:05.4]} 16. Nd2 {[%clk 0:01:09.7]} 16... bxa3 {[%clk 0:02:00.6]} 17. Rxa3
{[%clk 0:01:06.7]} 17... c4 {[%clk 0:01:59.6]} 18. Ra2 {[%clk 0:01:04.7]} 18...
Bc5 {[%clk 0:01:57.2]} 19. Ke2 {[%clk 0:00:59.4]} 19... Bxe3 {[%clk 0:01:54.5]}
20. Kxe3 {[%clk 0:01:00.3]} 20... Ke7 {[%clk 0:01:50.4]} 21. Rha1 {[%clk
0:00:54.6]} 21... Nb6 {[%clk 0:01:47.8]} 22. h4 {[%clk 0:00:37]} 22... Rhd8
{[%clk 0:01:47.1]} 23. Bf1 {[%clk 0:00:35.6]} 23... a4 {[%clk 0:01:43.8]} 24.
Be2 {[%clk 0:00:32.8]} 24... Bb5 {[%clk 0:01:41.1]} 25. Ngf1 {[%clk 0:00:25.4]}
25... Rd6 {[%clk 0:01:39.2]} 26. Nf3 {[%clk 0:00:24.1]} 26... Rad8 {[%clk
0:01:36.5]} 27. N1d2 {[%clk 0:00:19.9]} 27... Na5 {[%clk 0:01:33.5]} 28. Re1
{[%clk 0:00:15.3]} 28... Nb3 {[%clk 0:01:26.3]} 29. Nb1 {[%clk 0:00:15.1]} 29...
Ke6 {[%clk 0:01:13]} 30. Na3 {[%clk 0:00:14.5]} 30... Ba6 {[%clk 0:01:10.2]} 31.
Nc2 {[%clk 0:00:14.2]} 31... Nc5 {[%clk 0:00:58.9]} 32. Nb4 {[%clk 0:00:13.4]}
32... Bb5 {[%clk 0:00:59.3]} 33. Raa1 {[%clk 0:00:09.5]} 33... Nd3 {[%clk
0:00:56.8]} 34. Bxd3 {[%clk 0:00:07.8]} 34... cxd3 {[%clk 0:00:56.4]} 35. Nd2
{[%clk 0:00:08.3]} 35... Rf8 {[%clk 0:00:45.8]} 36. Rec1 {[%clk 0:00:07.6]}
36... Bc4 {[%clk 0:00:42.7]} 37. Nd5 {[%clk 0:00:03.5]} 37... Bxd5 {[%clk
0:00:39.9]} 38. exd5+ {[%clk 0:00:04]} 38... Rxd5 {[%clk 0:00:39.8]} 39. c4
{[%clk 0:00:03.7]} 39... Rc5 {[%clk 0:00:39.5]} 40. Ne4 {[%clk 0:00:03.4]} 40...
Rxc4 {[%clk 0:00:36.4]} 0-1

[Event "Late-Titled-Tuesday-Blitz-May-07-2024"]
[Site "Chess.com"]
[Date "2024.05.07"]
[Round "2"]
[White "GoltsevDmitry2000"]
[Black "NovakRatko"]
[Result "1-0"]
[WhiteElo "2757"]
[BlackElo "2412"]
[TimeControl "180+1"]
[EndTime "14:17:42 PDT"]
[Termination "GoltsevDmitry2000 won on time"]

1. e4 {[%clk 0:03:00.9]} 1... d5 {[%clk 0:02:51.2]} 2. exd5 {[%clk 0:03:00.7]}
2... c6 {[%clk 0:02:50.6]} 3. dxc6 {[%clk 0:03:00.2]} 3... Nxc6 {[%clk
0:02:51.3]} 4. c3 {[%clk 0:03:00.7]} 4... e5 {[%clk 0:02:51.3]} 5. Bc4 {[%clk
0:02:58.9]} 5... Bc5 {[%clk 0:02:51.1]} 6. Nf3 {[%clk 0:02:50.8]} 6... h6 {[%clk
0:02:50.3]} 7. O-O {[%clk 0:02:49.8]} 7... Bg4 {[%clk 0:02:49.2]} 8. Qb3 {[%clk
0:02:30.5]} 8... Qc7 {[%clk 0:02:39.2]} 9. d4 {[%clk 0:02:24.9]} 9... Bxf3
{[%clk 0:02:30.1]} 10. dxc5 {[%clk 0:02:21.5]} 10... Bh5 {[%clk 0:02:26.8]} 11.
Nd2 {[%clk 0:02:13.4]} 11... Nf6 {[%clk 0:02:23.5]} 12. Bd3 {[%clk 0:02:05.9]}
12... O-O-O {[%clk 0:02:03.7]} 13. Bf5+ {[%clk 0:02:01.3]} 13... Kb8 {[%clk
0:02:02.9]} 14. Nc4 {[%clk 0:02:00.5]} 14... e4 {[%clk 0:01:55.6]} 15. g3 {[%clk
0:01:52.9]} 15... g5 {[%clk 0:01:52.4]} 16. Be3 {[%clk 0:01:48.1]} 16... Bf3
{[%clk 0:01:48.9]} 17. Nd6 {[%clk 0:01:44.4]} 17... Bh5 {[%clk 0:01:03.6]} 18.
a4 {[%clk 0:01:24]} 18... Ne5 {[%clk 0:00:59.3]} 19. a5 {[%clk 0:01:11.9]} 19...
Rxd6 {[%clk 0:00:41.3]} 20. cxd6 {[%clk 0:01:11.4]} 20... Qxd6 {[%clk
0:00:41.8]} 21. Rfd1 {[%clk 0:00:57.7]} 21... Bxd1 {[%clk 0:00:41.3]} 22. Rxd1
{[%clk 0:00:58.6]} 22... Qc6 {[%clk 0:00:38]} 23. Kg2 {[%clk 0:00:54.3]} 23...
Nfg4 {[%clk 0:00:26]} 24. Bxg4 {[%clk 0:00:42]} 24... Nxg4 {[%clk 0:00:25.7]}
25. Qxf7 {[%clk 0:00:41.9]} 25... Nxe3+ {[%clk 0:00:18.3]} 26. fxe3 {[%clk
0:00:42.8]} 26... Qc5 {[%clk 0:00:09.8]} 27. Qf6 {[%clk 0:00:36.9]} 27... Rc8
{[%clk 0:00:03.8]} 28. Qd6+ {[%clk 0:00:27.4]} 28... Qxd6 {[%clk 0:00:03.5]} 29.
Rxd6 {[%clk 0:00:28.3]} 29... Rc6 {[%clk 0:00:02.7]} 30. Rd4 {[%clk 0:00:11.4]}
30... Re6 {[%clk 0:00:01.9]} 31. Kh3 {[%clk 0:00:10.1]} 31... h5 {[%clk
0:00:01.6]} 32. Rd5 {[%clk 0:00:10]} 32... g4+ {[%clk 0:00:01.2]} 33. Kg2 {[%clk
0:00:10.4]} 1-0

[Event "Late-Titled-Tuesday-Blitz-May-07-2024"]
[Site "Chess.com"]
[Date "2024.05.07"]
[Round "2"]
[White "miraitrunks"]
[Black "Meri-Arabidze"]
[Result "0-1"]
[WhiteElo "2244"]
[BlackElo "2716"]
[TimeControl "180+1"]
[EndTime "14:17:46 PDT"]
[Termination "Meri-Arabidze won on time"]

1. e4 {[%clk 0:02:59.3]} 1... c5 {[%clk 0:03:00.3]} 2. Nf3 {[%clk 0:02:58.8]}
2... e6 {[%clk 0:03:00.9]} 3. c3 {[%clk 0:02:58.6]} 3... d5 {[%clk 0:02:58.6]}
4. exd5 {[%clk 0:02:59.5]} 4... exd5 {[%clk 0:02:59.4]} 5. d4 {[%clk 0:03:00.1]}
5... Nc6 {[%clk 0:02:58.5]} 6. Bb5 {[%clk 0:03:00.2]} 6... Bd6 {[%clk
0:02:58.5]} 7. dxc5 {[%clk 0:02:58.9]} 7... Bxc5 {[%clk 0:02:59.4]} 8. O-O
{[%clk 0:02:58.4]} 8... Ne7 {[%clk 0:02:59.9]} 9. Bg5 {[%clk 0:02:57.9]} 9...
O-O {[%clk 0:02:58.7]} 10. Re1 {[%clk 0:02:57.5]} 10... Be6 {[%clk 0:02:53.4]}
11. Nbd2 {[%clk 0:02:52.2]} 11... Qb6 {[%clk 0:02:37.9]} 12. Bxc6 {[%clk
0:02:21.7]} 12... Bxf2+ {[%clk 0:02:30.9]} 13. Kf1 {[%clk 0:02:21.3]} 13... Nxc6
{[%clk 0:02:30.1]} 14. Re2 {[%clk 0:02:17.1]} 14... Bc5 {[%clk 0:02:29.1]} 15.
Nb3 {[%clk 0:02:14.8]} 15... h6 {[%clk 0:02:25.5]} 16. Bf4 {[%clk 0:02:09.3]}
16... Rfe8 {[%clk 0:02:19.3]} 17. Qd3 {[%clk 0:01:51.3]} 17... Rad8 {[%clk
0:02:13.7]} 18. Rae1 {[%clk 0:01:50.6]} 18... Bf8 {[%clk 0:02:10.2]} 19. Nfd4
{[%clk 0:01:37.2]} 19... Nxd4 {[%clk 0:02:09.9]} 20. Nxd4 {[%clk 0:01:38.1]}
20... Bd7 {[%clk 0:02:06.7]} 21. Qg3 {[%clk 0:01:34.3]} 21... Qf6 {[%clk
0:01:56.4]} 22. Kg1 {[%clk 0:01:12.4]} 22... Bc5 {[%clk 0:01:56.1]} 23. Be5
{[%clk 0:01:12]} 23... Qg5 {[%clk 0:01:54.7]} 24. Qd3 {[%clk 0:00:41.7]} 24...
Bf5 {[%clk 0:01:48.8]} 25. Qb5 {[%clk 0:00:34.1]} 25... Bxd4+ {[%clk 0:01:28.7]}
26. cxd4 {[%clk 0:00:24.6]} 26... Be4 {[%clk 0:01:19.2]} 27. Qxb7 {[%clk
0:00:21.1]} 27... Re7 {[%clk 0:01:15.9]} 28. Qb3 {[%clk 0:00:17.6]} 28... Rde8
{[%clk 0:01:16]} 29. Qg3 {[%clk 0:00:16.5]} 29... f6 {[%clk 0:01:07.8]} 30. Bf4
{[%clk 0:00:16.4]} 30... Qxg3 {[%clk 0:01:06.4]} 31. Bxg3 {[%clk 0:00:16.6]}
31... g5 {[%clk 0:01:04.6]} 32. b4 {[%clk 0:00:14.7]} 32... f5 {[%clk
0:00:58.7]} 33. Bd6 {[%clk 0:00:13.2]} 33... Rd7 {[%clk 0:00:55.6]} 34. Be5
{[%clk 0:00:12.7]} 34... f4 {[%clk 0:00:52.3]} 35. Rc1 {[%clk 0:00:08.3]} 35...
Re6 {[%clk 0:00:45.4]} 36. Rc8+ {[%clk 0:00:08.3]} 36... Kf7 {[%clk 0:00:45.8]}
37. Rh8 {[%clk 0:00:08.4]} 37... Kg6 {[%clk 0:00:45]} 38. h4 {[%clk 0:00:06.2]}
38... Rc6 {[%clk 0:00:38]} 39. hxg5 {[%clk 0:00:06.5]} 39... hxg5 {[%clk
0:00:38]} 40. Rg8+ {[%clk 0:00:07]} 40... Kf5 {[%clk 0:00:38.2]} 41. Rf8+ {[%clk
0:00:06.8]} 41... Kg4 {[%clk 0:00:38.5]} 42. Rf2 {[%clk 0:00:06.8]} 42... Rh7
{[%clk 0:00:35.1]} 0-1

[Event "Late-Titled-Tuesday-Blitz-May-07-2024"]
[Site "Chess.com"]
[Date "2024.05.07"]
[Round "2"]
[White "Redzishchess"]
[Black "JaackCamel"]
[Result "1-0"]
[WhiteElo "2506"]
[BlackElo "2202"]
[TimeControl "180+1"]
[EndTime "14:17:49 PDT"]
[Termination "Redzishchess won by resignation"]

1. Nf3 {[%clk 0:03:00.9]} 1... d5 {[%clk 0:02:59.4]} 2. d4 {[%clk 0:02:59.6]}
2... e6 {[%clk 0:02:57.9]} 3. c4 {[%clk 0:02:59.8]} 3... c6 {[%clk 0:02:57.9]}
4. Qc2 {[%clk 0:02:58.1]} 4... dxc4 {[%clk 0:02:55.6]} 5. Qxc4 {[%clk
0:02:49.9]} 5... b5 {[%clk 0:02:55.1]} 6. Qc2 {[%clk 0:02:49.8]} 6... Nd7 {[%clk
0:02:51.8]} 7. g3 {[%clk 0:02:50.1]} 7... c5 {[%clk 0:02:49.6]} 8. Bg2 {[%clk
0:02:48.6]} 8... Bb7 {[%clk 0:02:49.5]} 9. e3 {[%clk 0:02:24.3]} 9... Ngf6
{[%clk 0:02:47.5]} 10. O-O {[%clk 0:02:23]} 10... Be7 {[%clk 0:02:46.2]} 11. Rd1
{[%clk 0:02:18.1]} 11... Rc8 {[%clk 0:02:38.8]} 12. Qe2 {[%clk 0:02:10.9]} 12...
a6 {[%clk 0:02:35.2]} 13. dxc5 {[%clk 0:02:07.1]} 13... Bxc5 {[%clk 0:02:32]}
14. Nc3 {[%clk 0:02:01.8]} 14... O-O {[%clk 0:02:29.5]} 15. Bd2 {[%clk
0:01:53.4]} 15... Qb6 {[%clk 0:02:26.8]} 16. a4 {[%clk 0:01:47]} 16... b4 {[%clk
0:02:23.7]} 17. a5 {[%clk 0:01:47.4]} 17... Qa7 {[%clk 0:02:15.2]} 18. Na4
{[%clk 0:01:47.1]} 18... Be7 {[%clk 0:02:05.4]} 19. Rac1 {[%clk 0:01:17.7]}
19... h6 {[%clk 0:02:04.6]} 20. Be1 {[%clk 0:01:14.9]} 20... Bd5 {[%clk
0:02:00.3]} 21. Nd4 {[%clk 0:01:06]} 21... Bxg2 {[%clk 0:01:56.3]} 22. Kxg2
{[%clk 0:01:06.9]} 22... Nc5 {[%clk 0:01:41.3]} 23. Nb6 {[%clk 0:01:02.2]} 23...
Rc7 {[%clk 0:01:31.8]} 24. Bxb4 {[%clk 0:00:58.3]} 24... Re8 {[%clk 0:01:11.5]}
25. Rc2 {[%clk 0:00:41.1]} 25... Nce4 {[%clk 0:00:54.4]} 26. Bxe7 {[%clk
0:00:25.9]} 26... Rexe7 {[%clk 0:00:48.6]} 27. Nc6 {[%clk 0:00:17.1]} 27... Rxc6
{[%clk 0:00:42.9]} 28. Rxc6 {[%clk 0:00:18]} 28... Qb7 {[%clk 0:00:41.9]} 29.
Rc8+ {[%clk 0:00:18.4]} 29... Kh7 {[%clk 0:00:41.8]} 30. Qf3 {[%clk 0:00:18.9]}
30... Qa7 {[%clk 0:00:34]} 31. Rdd8 {[%clk 0:00:17.7]} 31... Ng5 {[%clk
0:00:28.5]} 32. Qa8 {[%clk 0:00:12.7]} 32... Qxa8+ {[%clk 0:00:26.2]} 33. Rxa8
{[%clk 0:00:13.6]} 33... Kg6 {[%clk 0:00:25.8]} 34. Rxa6 {[%clk 0:00:13.7]}
34... Nge4 {[%clk 0:00:24.7]} 35. Raa8 {[%clk 0:00:13.3]} 35... Nc5 {[%clk
0:00:24.6]} 36. a6 {[%clk 0:00:12.9]} 36... Nfe4 {[%clk 0:00:23.8]} 37. a7
{[%clk 0:00:12.2]} 37... Rb7 {[%clk 0:00:20.7]} 38. Nc8 {[%clk 0:00:04.2]} 38...
Na6 {[%clk 0:00:20.1]} 39. Nd6 {[%clk 0:00:02.8]} 39... Nxd6 {[%clk 0:00:19.7]}
40. Rxd6 {[%clk 0:00:03.7]} 40... Nc7 {[%clk 0:00:20.1]} 41. Rd7 {[%clk
0:00:04.4]} 41... Rxb2 {[%clk 0:00:18]} 42. Rxc7 {[%clk 0:00:04.4]} 42... Rd2
{[%clk 0:00:18.1]} 43. Rac8 {[%clk 0:00:05]} 43... Ra2 {[%clk 0:00:17.9]} 44.
a8=Q {[%clk 0:00:05.9]} 1-0